bitfinex-derivatives/quotes_ETHF0:USTF0_20240907
["timestamp","ask_amount","ask_price","bid_price","bid_amount"]
[1725748508761,6.69918,2265.7,2265.6,1.2022]
[1725748509671,7.80264,2265.7,2265.6,1.2022]
[1725748509970,6.02264,2265.7,2265.6,1.2022]
[1725748513367,3.64918,2265.7,2265.6,1.2022]
[1725748513568,3.64918,2265.7,2265.6,2.0018]
[1725748513569,3.2078,2265.7,2265.6,2.0018]
[1725748513871,0.44134,2266.0,2265.7,0.44137]
[1725748513872,1.27,2265.9,2265.7,0.44137]
[1725748514069,1.27,2265.9,2265.8,0.3682]
[1725748514373,1.27,2265.9,2265.8,1.9463]
[1725748514578,1.27,2265.9,2265.8,2.3045]
[1725748514967,1.71134,2265.9,2265.8,2.3045]
[1725748517371,1.71134,2265.9,2265.8,1.9463]
[1725748517875,2.08134,2265.9,2265.8,1.9463]
[1725748527781,2.08134,2265.9,2265.5,0.44141]
[1725748527782,0.44139,2265.7,2265.5,0.44141]
[1725748527979,1.71138,2265.8,2265.7,1.2022]
[1725748528877,1.71138,2265.8,2265.7,1.5884]
[1725748529071,0.7449,2265.9,2265.7,1.5884]
[1725748529072,1.71136,2265.9,2265.7,2.38798]
[1725748529275,4.57327,2266.3,2266.1,0.44129]
[1725748529483,4.132,2266.3,2266.2,1.9571]
[1725748529779,0.44126,2266.3,2266.2,2.339]
[1725748529981,0.44126,2266.3,2266.2,2.6972]
[1725748530281,0.82376,2266.3,2266.2,2.6972]
[1725748531282,0.82376,2266.3,2266.2,1.9703]
[1725748531477,0.44126,2266.3,2266.2,2.3285]
[1725748534674,0.44126,2266.3,2266.2,1.2022]
[1725748534983,0.80446,2266.3,2266.2,1.2022]
[1725748536177,0.44126,2266.3,2266.2,1.2022]
[1725748536575,1.27,2266.4,2266.2,1.2022]
[1725748536794,1.27,2266.4,2266.2,1.64348]
[1725748536981,1.71125,2266.4,2266.2,1.2022]
[1725748537885,0.44127,2266.3,2266.1,0.80999]
[1725748538096,0.44127,2266.3,2266.1,1.16819]
[1725748538281,0.44127,2266.3,2266.2,1.2022]
[1725748540585,1.71126,2266.4,2266.2,1.5604]
[1725748540789,1.71125,2266.4,2266.3,1.2022]
[1725748541085,1.71125,2266.4,2266.3,1.5678]
[1725748541787,1.27,2266.4,2266.3,1.5678]
[1725748542286,1.71125,2266.4,2266.3,1.5678]
[1725748543185,0.7517,2266.5,2266.3,1.926]
[1725748543186,0.3613,2266.5,2266.3,1.926]
[1725748543485,4.40093284,2266.7,2266.3,1.926]
[1725748543486,1.27,2266.7,2266.5,0.44121]
[1725748543681,1.27,2266.7,2266.6,1.5767]
[1725748544181,1.6436,2266.8,2266.6,2.3761]
[1725748544377,2.08477,2266.8,2266.7,1.2022]
[1725748554396,3.1877,2266.8,2266.7,1.2022]
[1725748555091,0.4414,2265.7,2265.3,3.64925]
[1725748555291,0.4414,2265.7,2265.5,0.3741]
[1725748555593,0.4414,2265.7,2265.6,1.2022]
[1725748556190,0.4414,2265.7,2265.6,1.5604]
[1725748558299,0.44145,2265.4,2265.2,3.2078]
[1725748558494,0.44145,2265.4,2265.2,0.3582]
[1725748558801,0.44145,2265.4,2265.3,1.2022]
[1725748559402,0.44145,2265.4,2265.3,1.5604]
[1725748561185,0.44145,2265.4,2265.3,1.2022]
[1725748561593,1.18415,2265.4,2265.3,1.2022]
[1725748562793,1.10366,2265.3,2264.5,3.64941]
[1725748562997,3.05,2265.0,2264.8,1.2022]
[1725748563403,0.44154,2264.9,2264.8,1.2022]
[1725748563699,0.44154,2264.9,2264.6,0.3754]
[1725748563700,0.44158,2264.7,2264.3,0.3664]
[1725748564005,3.2078,2264.8,2264.5,1.2022]
[1725748564203,3.4916,2264.6,2264.5,1.2022]
[1725748567401,0.44168,2264.2,2264.0,0.3618]
[1725748567601,3.49168,2264.2,2264.1,1.2022]
[1725748567907,4.4168,2264.1,2263.5,3.2078]
[1725748568137,3.64951,2264.0,2263.9,1.2022]
[1725748568310,6.2578,2264.0,2263.9,1.2022]
[1725748569305,0.778,2264.1,2263.9,1.2022]
[1725748569610,0.44169,2264.1,2264.0,1.2022]
[1725748569810,3.49168,2264.2,2264.0,1.2022]
[1725748570016,3.49168,2264.2,2264.1,1.2022]
[1725748570307,3.49167,2264.2,2264.1,1.2022]
[1725748570504,0.44178,2263.7,2263.3,0.3646]
[1725748570706,3.05,2263.8,2263.7,1.2022]
[1725748570909,3.05,2263.8,2263.7,0.3582]
[1725748571106,7.6968,2264.1,2263.7,1.5604]
[1725748571107,3.05,2264.0,2263.7,1.5604]
[1725748571311,3.05,2264.0,2263.9,1.2022]
[1725748571796,3.49171,2264.0,2263.9,1.2022]
[1725748572001,3.05,2264.0,2263.9,1.2022]
[1725748572211,3.49171,2264.0,2263.9,1.2022]
[1725748572511,3.05,2264.0,2263.9,1.2022]
[1725748573206,3.49171,2264.0,2263.9,1.2022]
[1725748573411,3.05,2264.0,2263.9,1.2022]
[1725748575413,7.90853,2264.0,2263.4,0.3593]
[1725748575707,3.05,2264.0,2263.9,1.2022]
[1725748575914,3.49171,2264.0,2263.9,1.2022]
[1725748576306,0.44177,2263.8,2263.4,0.80112]
[1725748576512,0.44177,2263.8,2263.4,1.15932]
[1725748576809,3.49177,2263.8,2263.7,1.2022]
[1725748577510,3.49175,2263.8,2263.7,1.2022]
[1725748578606,4.31209,2264.1,2263.7,1.5604]
[1725748578607,3.05,2264.1,2263.7,1.5604]
[1725748578806,3.05,2263.9,2263.7,0.3582]
[1725748579207,3.05,2263.9,2263.7,1.5604]
[1725748579410,0.44175,2263.8,2263.7,1.2022]
[1725748580110,0.44178,2263.7,2263.4,0.3693]
[1725748580311,3.4379,2263.7,2263.6,1.2022]
[1725748581111,3.05,2263.7,2263.6,1.2022]
[1725748581517,3.05,2263.7,2263.6,1.9457]
[1725748585708,3.49175,2263.9,2263.6,2.38749]
[1725748585918,3.49175,2263.9,2263.8,1.2022]
[1725748587217,3.05,2263.9,2263.8,2.00215]
[1725748591615,3.49173,2263.9,2263.8,1.5604]
[1725748592025,3.05,2263.9,2263.8,2.00215]
[1725748593422,3.05,2263.9,2263.8,1.5604]
[1725748594016,3.49173,2263.9,2263.8,1.5604]
[1725748594225,3.05,2263.9,2263.8,1.5604]
[1725748594617,3.05,2263.9,2263.8,2.00215]
[1725748595426,3.05,2263.9,2263.8,1.9347]
[1725748597132,3.49173,2263.9,2263.8,1.2022]
[1725748597625,3.05,2263.9,2263.8,1.2022]
[1725748599627,3.05,2263.9,2263.8,2.00215]
[1725748599826,3.49173,2263.9,2263.8,1.2022]
[1725748601830,3.05,2263.9,2263.8,1.2022]
[1725748602036,1.71173,2263.9,2263.8,1.2022]
[1725748602737,1.27,2263.9,2263.8,1.2022]
[1725748604134,1.71173,2263.9,2263.8,1.2022]
[1725748604324,1.27,2263.9,2263.8,1.64395]
[1725748605346,1.71173,2263.9,2263.8,1.2022]
[1725748608532,1.27,2263.9,2263.8,1.2022]
[1725748608836,1.27,2263.9,2263.8,1.64395]
[1725748610846,1.71173,2263.9,2263.8,1.2022]
[1725748611343,1.27,2263.9,2263.8,1.2022]
[1725748612739,1.71173,2263.9,2263.8,1.2022]
[1725748613041,1.27,2263.9,2263.8,1.2022]
[1725748613543,1.71173,2263.9,2263.8,1.2022]
[1725748613842,1.27,2263.9,2263.8,1.64395]
[1725748615450,1.71173,2263.9,2263.8,1.2022]
[1725748619843,1.27,2263.9,2263.8,1.2022]
[1725748620233,1.71173,2263.9,2263.8,1.2022]
[1725748620439,1.27,2263.9,2263.8,1.2022]
[1725748620746,1.27,2263.9,2263.8,2.00215]
[1725748621133,1.71173,2263.9,2263.8,1.5604]
[1725748624339,4.02650722,2264.0,2263.8,1.5604]
[1725748624645,3.6495,2264.1,2263.9,2.3531]
[1725748624849,3.6495,2264.1,2264.0,1.2022]
[1725748625235,3.6495,2264.1,2264.0,1.5604]
[1725748625845,4.9195,2264.1,2264.0,1.5604]
[1725748627541,1.7117,2264.1,2264.0,1.5604]
[1725748628339,1.27,2264.1,2264.0,1.5604]
[1725748628651,1.71169,2264.1,2264.0,1.5604]
[1725748629347,4.02650722,2264.2,2264.0,1.5604]
[1725748629549,8.37425406,2264.4,2264.3,0.44165]
[1725748629550,2.46610722,2264.4,2264.3,0.44165]
[1725748629845,3.32211209,2264.7,2264.4,0.44164]
[1725748630149,1.27,2264.5,2264.4,0.7511]
[1725748630645,1.27,2264.5,2264.4,5.60874]
[1725748632144,1.27,2264.5,2264.4,5.1671]
[1725748632350,1.71162,2264.5,2264.4,5.1671]
[1725748632652,1.27,2264.5,2264.4,5.1671]
[1725748634153,1.27,2264.5,2264.4,5.60874]
[1725748635253,3.64935,2264.9,2264.6,0.44159]
[1725748635449,1.27,2264.7,2264.6,0.44159]
[1725748637050,1.27,2264.7,2264.4,0.7511]
[1725748637237,1.27,2264.5,2264.4,1.19273]
[1725748637442,0.3695,2264.7,2264.5,0.4416]
[1725748637645,1.27,2264.6,2264.5,0.4416]
[1725748642859,1.27,2264.6,2264.4,0.7511]
[1725748642860,0.44162,2264.5,2264.4,0.3781]
[1725748643055,0.44164,2264.4,2264.1,0.44168]
[1725748643352,1.27,2264.2,2264.1,0.44168]
[1725748646056,1.27,2264.3,2264.2,0.44167]
[1725748646852,1.71165,2264.3,2264.2,0.44167]
[1725748647057,1.71165,2264.3,2264.1,0.44168]
[1725748647058,0.44167,2264.2,2264.1,0.44168]
[1725748647254,0.81787,2264.2,2264.1,0.44168]
[1725748647560,1.27,2264.3,2264.2,0.44167]
[1725748650751,1.27,2264.3,2264.2,4.85847]
[1725748650958,1.27,2264.5,2264.4,0.44162]
[1725748652359,1.27,2264.5,2264.4,4.85762]
[1725748655059,1.6358,2264.7,2264.6,0.4416]
[1725748659861,1.27,2264.8,2264.6,4.416]
[1725748660060,1.27,2264.8,2264.6,3.2078]
[1725748660263,1.27,2264.8,2264.7,0.44156]
[1725748662971,1.27,2264.8,2264.7,0.83516]
[1725748663268,1.27,2264.8,2264.7,0.44156]
[1725748663470,1.27,2264.8,2264.7,0.83516]
[1725748667171,1.71156,2264.8,2264.7,0.83516]
[1725748667367,1.71156,2264.8,2264.6,0.44158]
[1725748667570,1.6343,2264.7,2264.6,0.44158]
[1725748672963,1.27,2264.8,2264.6,0.44158]
[1725748673174,1.6338,2264.8,2264.6,0.44158]
[1725748673578,1.6338,2264.8,2264.7,0.39]
[1725748673874,1.6338,2264.8,2264.7,0.83158]
[1725748674269,1.6338,2264.8,2264.7,0.39]
[1725748674576,1.6338,2264.8,2264.7,0.83158]
[1725748681868,1.27,2264.8,2264.7,0.83158]
[1725748682368,1.71156,2264.8,2264.6,0.44158]
[1725748682573,1.6656,2264.7,2264.6,0.44158]
[1725748682773,2.10718,2264.7,2264.5,0.44161]
[1725748682974,0.781,2264.6,2264.5,0.44161]
[1725748683577,0.781,2264.6,2264.2,3.2078]
[1725748683786,0.44164,2264.4,2264.2,3.2078]
[1725748684082,1.71163,2264.5,2264.2,3.2078]
[1725748684287,0.3693,2264.3,2264.2,3.64947]
[1725748685073,0.3693,2264.3,2264.2,3.2078]
[1725748688084,0.3693,2264.3,2264.1,0.44168]
[1725748688085,1.6393,2264.3,2263.9,3.2078]
[1725748688295,1.19728,2264.2,2263.9,3.64953]
[1725748688591,1.19728,2264.2,2263.9,3.2078]
[1725748688788,0.7556,2264.2,2263.9,3.64953]
[1725748688990,1.19728,2264.2,2263.9,3.64953]
[1725748689185,0.7556,2264.2,2264.0,0.3812]
[1725748689385,0.7556,2264.2,2264.1,0.44169]
[1725748689896,0.3868,2264.2,2264.1,0.44169]
[1725748690296,5.12964834,2264.7,2264.1,0.44169]
[1725748690297,0.3868,2264.6,2264.4,0.44162]
[1725748690695,2.0984,2264.6,2264.3,3.64944]
[1725748691088,1.6568,2264.6,2264.3,3.2078]
[1725748691687,2.09841,2264.6,2264.3,3.64945]
[1725748691890,2.09841,2264.6,2264.3,3.2078]
[1725748691891,0.44163,2264.5,2264.3,3.2078]
[1725748692394,0.7492,2264.4,2264.3,3.2078]
[1725748693094,0.7492,2264.4,2264.2,0.44166]
[1725748694889,0.44167,2264.2,2264.0,0.7613]
[1725748695092,0.3778,2264.1,2264.0,0.82291]
[1725748695298,1.71166,2264.3,2264.0,0.82291]
[1725748695604,1.6346,2264.3,2264.1,0.44169]
[1725748696505,2.07625,2264.3,2264.1,0.44169]
[1725748696889,2.07626,2264.3,2264.0,0.44171]
[1725748697204,0.44168,2264.2,2263.9,0.44172]
[1725748698998,0.44169,2264.1,2263.9,0.44172]
[1725748699706,1.6346,2264.3,2264.0,0.44171]
[1725748699707,0.44169,2264.2,2264.0,0.44171]
[1725748699909,2.07627,2264.3,2263.8,4.3231]
[1725748700408,2.07627,2264.3,2264.1,0.44169]
[1725748701702,0.44167,2264.2,2264.0,0.4417]
[1725748701905,2.07627,2264.3,2264.0,0.4417]
[1725748702100,1.6346,2264.3,2264.1,0.3861]
[1725748702300,1.6346,2264.3,2264.1,0.82778]
[1725748702713,1.6346,2264.3,2264.2,0.44167]
[1725748703606,2.07625,2264.3,2264.1,0.82778]
[1725748704301,1.6346,2264.3,2263.9,0.44173]
[1725748704506,0.44169,2264.2,2263.9,0.44172]
[1725748704707,0.44169,2264.2,2264.0,0.44171]
[1725748705912,2.07627,2264.3,2264.0,0.44171]
[1725748706298,2.07627,2264.3,2264.1,0.44169]
[1725748706607,0.44168,2264.2,2264.0,0.4417]
[1725748708205,0.44169,2264.1,2263.9,0.44172]
[1725748708509,0.44169,2264.2,2263.9,0.44172]
[1725748708808,0.3865,2264.0,2263.9,0.44172]
[1725748709312,0.3865,2264.0,2263.9,4.85852]
[1725748715509,0.7428,2264.4,2263.9,4.4168]
[1725748715809,0.7428,2264.4,2264.1,0.44168]
[1725748715810,0.44166,2264.3,2264.1,0.44168]
[1725748716015,0.44166,2264.3,2264.2,0.3657]
[1725748717208,2.45444,2264.4,2264.2,0.80737]
[1725748717409,0.44165,2264.3,2264.2,0.3657]
[1725748720416,2.45445,2264.4,2264.2,0.3657]
[1725748721122,2.45444,2264.4,2264.2,0.80736]
[1725748721523,2.0128,2264.4,2264.2,0.80736]
[1725748721719,2.45444,2264.4,2264.2,0.80736]
[1725748724423,2.45444,2264.4,2264.2,0.3657]
[1725748725126,2.45444,2264.4,2264.2,0.80737]
[1725748726512,2.45444,2264.4,2264.2,0.3657]
[1725748726721,2.45444,2264.4,2264.1,0.44168]
[1725748726916,0.3838,2264.5,2264.1,3.2078]
[1725748727124,0.3838,2264.5,2264.4,3.64944]
[1725748727517,0.3838,2264.5,2264.4,0.44164]
[1725748727715,0.3838,2264.5,2264.3,0.44164]
[1725748727920,0.82543,2264.5,2264.2,4.79007]
[1725748728523,0.3838,2264.5,2264.2,4.3484]
[1725748728727,0.3838,2264.5,2264.3,0.44165]
[1725748729324,0.82542,2264.5,2264.2,4.79006]
[1725748729827,2.09542,2264.5,2264.2,4.79006]
[1725748730024,1.6538,2264.5,2264.3,0.44165]
[1725748730228,2.09542,2264.5,2264.2,4.79006]
[1725748730626,0.3838,2264.5,2264.2,4.3484]
[1725748730831,0.3838,2264.5,2264.4,0.44164]
[1725748731025,4.02569834,2264.9,2264.4,4.416]
[1725748731328,1.6601,2264.8,2264.6,0.44159]
[1725748731530,1.6601,2264.8,2264.5,0.3585]
[1725748731531,1.27,2264.6,2264.5,0.3585]
[1725748731733,1.27,2264.6,2264.5,0.80012]
[1725748733630,0.3901,2264.8,2264.7,0.44158]
[1725748734033,0.756,2264.9,2264.8,0.44156]
[1725748734228,1.1256,2264.9,2264.8,0.44156]
[1725748734436,4.02569834,2265.3,2264.8,4.4152]
[1725748734632,1.6396,2265.2,2265.0,0.44151]
[1725748734832,1.6396,2265.2,2265.0,1.23141]
[1725748735330,1.27,2265.7,2265.3,0.44145]
[1725748735528,1.27,2265.7,2265.1,7.623]
[1725748735529,0.364,2265.7,2265.4,0.79903]
[1725748735729,1.634,2265.7,2265.5,0.3954]
[1725748739040,2.07539,2265.7,2265.4,0.3576]
[1725748739238,1.27,2265.5,2265.4,0.3576]
[1725748739743,1.27,2265.5,2265.4,4.772]
[1725748741738,1.27,2265.5,2265.3,0.44146]
[1725748741939,1.27,2265.5,2265.2,0.82807]
[1725748742143,1.6527,2265.5,2265.2,0.82807]
[1725748742439,1.6527,2265.5,2265.3,0.44146]
[1725748743144,1.27,2265.6,2265.3,0.44146]
[1725748744840,1.7114,2265.6,2265.3,0.44146]
[1725748745038,1.27,2265.5,2265.3,0.44146]
[1725748745234,2.08012,2265.5,2265.3,0.44146]
[1725748745435,0.3946,2265.4,2265.1,3.5751]
[1725748745640,1.27,2265.2,2264.7,3.2078]
[1725748745946,0.4415,2265.1,2264.8,0.44154]
[1725748747034,0.4415,2265.1,2264.9,0.44154]
[1725748747441,0.4415,2265.1,2264.8,0.44155]
[1725748748141,0.3578,2265.0,2264.8,0.44155]
[1725748748541,0.3578,2265.0,2264.9,0.44154]
[1725748748934,0.3578,2265.0,2264.9,4.85674]
[1725748752550,0.3844,2265.3,2265.2,0.44148]
[1725748757356,0.3844,2265.3,2265.1,0.44148]
[1725748757548,0.3844,2265.3,2265.2,0.44148]
[1725748758053,1.6544,2265.3,2264.6,5.27297]
[1725748758252,0.44149,2265.2,2264.7,1.1297]
[1725748758643,0.44149,2265.2,2264.8,3.2078]
[1725748758858,0.44149,2265.2,2265.0,0.44152]
[1725748760055,2.09587,2265.3,2265.1,0.4415]
[1725748761442,0.3844,2265.3,2265.2,0.44148]
[1725748766364,0.7556,2265.4,2265.3,0.44146]
[1725748766962,5.17,2265.4,2264.4,4.31185]
[1725748767159,0.44155,2264.9,2264.7,0.44157]
[1725748767663,0.44153,2265.0,2264.8,0.44156]
[1725748767966,0.3875,2264.9,2264.8,0.44156]
[1725748773467,0.3875,2264.9,2264.7,3.2078]
[1725748773468,0.3875,2264.9,2264.7,3.64936]
[1725748773763,0.3875,2264.9,2264.8,0.44156]
[1725748778850,0.3875,2264.9,2264.7,3.2078]
[1725748778851,0.82904,2264.9,2264.7,3.64936]
[1725748779056,0.82904,2264.9,2264.7,3.64937]
[1725748781360,0.3875,2264.9,2264.8,0.44156]
[1725748783353,0.44153,2265.0,2264.8,0.44156]
[1725748784871,0.44154,2264.9,2264.8,0.44156]
[1725748785966,0.44154,2264.9,2264.7,3.64937]
[1725748786565,0.44154,2264.9,2264.8,0.44156]
[1725748787970,0.392,2265.0,2264.9,0.44154]
[1725748790568,1.17187,2265.3,2265.1,0.44149]
[1725748791274,1.17187,2265.3,2265.1,0.81119]
[1725748791476,1.17187,2265.3,2265.1,0.3697]
[1725748791863,1.17187,2265.3,2265.1,0.81119]
[1725748792059,0.7304,2265.3,2265.1,0.81119]
[1725748792264,1.17186,2265.3,2265.1,0.81119]
[1725748792465,0.81426,2265.3,2265.1,0.81119]
[1725748792664,1.19306,2265.3,2265.1,0.81119]
[1725748793468,0.7516,2265.3,2265.1,0.81119]
[1725748796873,1.19307,2265.3,2265.1,0.81119]
[1725748797075,1.19307,2265.3,2265.1,0.3697]
[1725748797270,0.44148,2265.2,2265.1,0.3697]
[1725748798966,1.19307,2265.3,2265.1,0.8112]
[1725748799275,0.7516,2265.3,2265.1,0.8112]
[1725748799475,0.3728,2265.3,2265.2,0.44148]
[1725748800673,0.3728,2265.3,2265.1,0.81118]
[1725748801185,0.3728,2265.3,2265.2,0.44148]
[1725748801681,0.81426,2265.3,2265.2,0.44148]
[1725748802085,0.81426,2265.3,2265.1,0.81118]
[1725748802980,0.44148,2265.2,2265.1,0.81118]
[1725748804078,0.81427,2265.3,2265.1,0.81118]
[1725748804580,0.3728,2265.3,2265.2,0.44148]
[1725748805174,0.81426,2265.3,2265.2,0.44148]
[1725748806085,0.81426,2265.3,2265.1,0.81119]
[1725748806386,0.44148,2265.2,2265.1,0.81119]
[1725748807183,0.81427,2265.3,2265.1,0.81119]
[1725748809682,0.3733,2265.2,2265.1,0.81119]
[1725748810476,0.81427,2265.3,2265.1,0.81119]
[1725748812385,0.44148,2265.2,2265.1,0.3697]
[1725748812574,0.44148,2265.2,2265.1,0.8112]
[1725748813886,0.81427,2265.3,2265.1,0.8112]
[1725748815583,0.81427,2265.3,2265.1,0.4415]
[1725748815788,0.44148,2265.2,2265.0,0.44151]
[1725748816090,0.3908,2265.1,2265.0,0.44151]
[1725748817390,0.44152,2265.0,2264.9,3.2078]
[1725748817579,1.20972,2265.0,2264.9,3.2078]
[1725748817986,0.7682,2265.0,2264.9,3.64934]
[1725748818287,0.3908,2265.1,2265.0,0.44152]
[1725748818787,0.44149,2265.2,2265.0,1.21272]
[1725748819789,0.3717,2265.1,2265.0,1.21272]
[1725748821593,1.20967,2265.3,2265.2,0.44148]
[1725748821787,8.22860574,2265.6,2265.2,0.44148]
[1725748821788,4.43987363,2265.6,2265.4,0.44143]
[1725748822088,0.44136,2265.8,2265.6,0.44139]
[1725748822388,0.3675,2265.8,2265.7,0.44138]
[1725748822792,1.10317,2266.3,2265.7,4.4136]
[1725748822793,5.29569834,2266.3,2265.7,4.4136]
[1725748823090,0.7349,2266.2,2265.9,0.44133]
[1725748823482,0.7349,2266.2,2265.8,4.3265]
[1725748823679,0.7349,2266.2,2265.8,4.54380007]
[1725748823879,0.7349,2266.2,2266.0,0.44131]
[1725748824591,0.7349,2266.2,2265.8,4.54380007]
[1725748825091,0.7349,2266.2,2266.0,0.44131]
[1725748825487,0.3675,2266.2,2266.1,0.4413]
[1725748825690,0.3675,2266.2,2266.0,0.44131]
[1725748825884,0.3675,2266.2,2266.1,0.4413]
[1725748827984,0.3675,2266.2,2266.0,0.44131]
[1725748828986,0.3675,2266.2,2266.1,0.4413]
[1725748831088,0.7632,2266.4,2266.2,0.44128]
[1725748831281,0.3924,2266.4,2266.2,0.79928]
[1725748833189,0.3924,2266.4,2266.3,0.3816]
[1725748834194,0.83365,2266.4,2266.3,0.3816]
[1725748835900,0.3924,2266.4,2266.1,3.64909]
[1725748836304,0.83366,2266.4,2266.1,3.64909]
[1725748836602,0.83366,2266.4,2266.2,0.44128]
[1725748836804,0.3924,2266.4,2266.2,0.44128]
[1725748838801,0.3924,2266.4,2266.1,3.2078]
[1725748839001,0.3924,2266.4,2266.2,0.44128]
[1725748839201,0.3924,2266.4,2266.3,0.44126]
[1725748839404,2.07562,2266.6,2266.3,0.44126]
[1725748839700,0.80562,2266.6,2266.4,0.44124]
[1725748839902,0.3644,2266.6,2266.4,0.44124]
[1725748840107,0.80561,2266.6,2266.4,0.44124]
[1725748840407,0.80561,2266.6,2266.3,0.44125]
[1725748841099,0.80561,2266.6,2266.4,0.44124]
[1725748843809,0.80561,2266.6,2266.5,0.44123]
[1725748843810,0.3644,2266.6,2266.5,0.44123]
[1725748846302,0.3762,2266.7,2266.6,0.44121]
[1725748846508,0.81739,2266.7,2266.5,0.44121]
[1725748846709,0.3762,2266.7,2266.5,0.44121]
[1725748846910,0.3762,2266.7,2266.6,0.44121]
[1725748847711,0.364,2266.8,2266.6,0.44121]
[1725748847918,0.364,2266.8,2266.7,0.44119]
[1725748848413,0.364,2266.8,2266.7,3.64899]
[1725748848805,0.3861,2266.9,2266.8,0.44117]
[1725748849007,0.44112,2267.1,2266.9,0.44115]
[1725748851702,0.44112,2267.1,2266.8,1.19255]
[1725748852102,0.44112,2267.1,2266.9,0.44115]
[1725748852308,1.5666,2267.2,2266.9,0.44115]
[1725748852707,0.44111,2267.1,2266.9,0.44115]
[1725748852904,0.44111,2267.1,2266.8,2.82256]
[1725748854606,0.44111,2267.1,2266.8,2.46256]
[1725748855719,0.44113,2267.0,2266.8,2.46256]
[1725748856114,0.3599,2266.9,2266.8,2.46256]
[1725748857906,0.3599,2266.9,2266.8,5.67036]
[1725748859012,0.3599,2266.9,2266.8,2.46256]
[1725748859305,0.3599,2266.9,2266.8,3.9592]
[1725748859715,0.3599,2266.9,2266.8,4.40037]
[1725748860415,0.3599,2266.9,2266.8,3.9592]
[1725748860618,0.3599,2266.9,2266.8,4.40037]
[1725748861520,0.3599,2266.9,2266.8,3.9592]
[1725748862507,0.3599,2266.9,2266.8,3.2078]
[1725748862508,0.80105,2266.9,2266.8,3.2078]
[1725748862707,5.87398,2266.9,2266.5,0.3675]
[1725748862917,0.80106,2266.9,2266.6,0.44119]
[1725748863222,0.3599,2266.9,2266.7,0.44118]
[1725748863722,0.3599,2266.9,2266.8,0.3874]
[1725748863723,0.80105,2266.9,2266.8,0.3874]
[1725748864022,0.3599,2266.9,2266.8,0.3874]
[1725748864212,0.80105,2266.9,2266.8,0.3874]
[1725748867116,0.3599,2266.9,2266.8,0.3874]
[1725748870328,0.80105,2266.9,2266.8,0.3874]
[1725748870520,0.80105,2266.9,2266.6,0.44119]
[1725748870822,0.80105,2266.9,2266.7,0.44118]
[1725748871325,0.44117,2266.8,2266.5,0.80871]
[1725748871517,0.7537,2266.7,2266.5,0.80871]
[1725748871928,0.3807,2266.6,2266.5,0.80871]
[1725748872424,0.3807,2266.6,2266.4,3.5703]
[1725748872633,0.44128,2266.2,2266.1,1.15573031]
[1725748873332,0.44128,2266.2,2265.8,1.41925025]
[1725748873530,0.44132,2266.0,2265.4,7.3768]
[1725748873729,2.09472,2266.1,2265.7,0.44138]
[1725748874235,0.44133,2266.0,2265.6,2.30504138]
[1725748874830,0.3905,2266.3,2265.8,3.2078]
[1725748875129,1.1612,2266.3,2266.0,0.44132]
[1725748875327,3.62163833,2267.0,2266.1,3.2078]
[1725748875530,2.0196,2266.9,2266.6,0.4412]
[1725748875831,2.4069,2266.9,2266.4,3.2078]
[1725748876019,1.1369,2266.9,2266.7,0.44117]
[1725748876327,0.7752,2266.9,2266.6,0.4412]
[1725748876527,0.7752,2266.9,2266.5,0.3885]
[1725748876728,0.44117,2266.8,2266.4,3.2078]
[1725748876929,0.44117,2266.8,2266.4,3.64904]
[1725748877125,0.44119,2266.7,2266.4,3.2078]
[1725748877330,0.80289,2266.7,2266.4,3.2078]
[1725748877529,0.3617,2266.7,2266.4,3.2078]
[1725748877720,0.80289,2266.7,2266.4,3.2078]
[1725748877925,0.3617,2266.7,2266.4,3.2078]
[1725748878129,0.44122,2266.6,2266.1,0.82979]
[1725748878444,0.83533,2266.5,2266.1,1.58339]
[1725748878625,0.44127,2266.3,2265.9,0.44134]
[1725748878828,0.7825,2266.5,2266.1,3.2078]
[1725748879128,0.7825,2266.5,2266.3,0.44125]
[1725748879543,0.7825,2266.5,2266.3,0.3793]
[1725748880538,1.22373,2266.5,2266.2,0.7493]
[1725748880840,5.1945,2266.5,2265.9,0.44133]
[1725748881036,0.44128,2266.2,2265.9,0.44133]
[1725748881235,1.172,2266.1,2265.8,4.04085]
[1725748883839,1.172,2266.1,2265.9,0.44134]
[1725748884135,0.44122,2266.6,2265.9,4.4128]
[1725748884439,0.44125,2266.4,2266.1,0.44129]
[1725748885136,0.44125,2266.4,2266.0,0.388]
[1725748885137,0.44131,2266.1,2265.8,3.2078]
[1725748885344,0.7568,2266.0,2265.8,3.2078]
[1725748886138,0.7568,2266.0,2265.8,3.64916]
[1725748886738,1.124,2266.0,2265.8,3.64916]
[1725748886947,1.124,2266.0,2265.7,0.7413]
[1725748887143,1.124,2266.0,2265.5,1.53760821]
[1725748887342,1.124,2266.0,2265.5,1.97901821]
[1725748887936,1.124,2266.0,2265.5,0.82411]
[1725748888842,0.44137,2265.8,2265.5,0.82411]
[1725748890135,0.44136,2265.9,2265.5,0.82411]
[1725748892439,1.56534,2266.0,2265.6,0.4414]
[1725748893441,0.44135,2265.9,2265.6,0.4414]
[1725748893741,1.56534,2266.0,2265.6,0.4414]
[1725748894639,1.56534,2266.0,2265.7,0.44138]